Cogmind - Beta 9.3 @@@ ROGUE MODE // 2019.12.31 @ 02:08:10 Player: Trione Result: Destroyed by P-70 Sage with High-powered Shock Rifle Performance ------------- Evolutions (6) 3000 Regions Visited (25) 5000 Robots Destroyed (463) 2315 Value Destroyed (21182) 21182 Prototype IDs (46) 920 Alien Tech Used (0) 0 Bonus (13564) 13564 TOTAL SCORE: 45981 Bonus ------- Triggered High Security 500 High Alert Combat Kills 3781 Follower Combat Kills 3641 Entered Garrisons 1400 Used RIF Installer 3500 Network Hubs Disabled 400 Aligned with FarCom 300 A7 Reached Mainframe 300 Met R17 at Cetus 500 Friendly Fire -758 Cogmind --------- Core Integrity 0/1150 Matter 155/300 Energy 90/100 System Corruption 29% Temperature Cool (0) Movement Core (50) Location -4/Factory Parts ------- > --- POWER (1) -------- (None) > --- PROPULSION (2) --- (None) > --- UTILITY (14) ----- (None) > --- WEAPON (2) ------- (None) > --- INVENTORY (4) ---- EMDS Peak State ------------ > --- POWER ------------ Quantum Reactor > --- PROPULSION ------- Centrium Heavy Treads > --- UTILITY ---------- Experimental Heat Sink Large Storage Unit Large Storage Unit High-capacity Storage Unit High-capacity Storage Unit High-capacity Storage Unit Enhanced Optical Array Improved Signal Interpreter Improved Utility Shielding EM Dispersion Field Improved Hacking Suite Improved Hacking Suite Relay Coupler [Grunt] Relay Coupler [Hunter] > --- WEAPON ----------- Hypervelocity Coil Gun Improved KE Penetrator > --- INVENTORY -------- Heavy Treads Armored Wheel Armored Wheel Advanced Power Amplifier Large Storage Unit Improved Matter Compressor Long-range Sensor Array Experimental Terrain Scanner Experimental Targeting Computer Energy Filter Improved Transmission Jammer Experimental Phase Shifter Reactive Plating Thermal Shield Advanced Hacking Suite Relay Coupler [Grunt] Relay Coupler [Grunt] Relay Coupler [Sentry] Relay Coupler [Hunter] Relay Coupler [Hunter] System Backup Module Advanced Variable Charge Gun Latent Energy Streamer EMDS EMDS Advanced Plasma Cannon Guided Plasma Cannon Improved KE Penetrator Advanced EMP Blaster Proton Missile Launcher Heavy Shock Bomb Launcher Heavy Missile Launcher Heavy Missile Launcher Advanced Datajack Improved Remote Datajack Phasing Sabre Spear [Rating: 111] Favorites ----------- Power Improved Deuterium Engine Engine Improved Deuterium Engine Power Core Light Nuclear Core Reactor Quantum Reactor Propulsion Light Treads Treads Light Treads Wheel Armored Wheel Hover Unit Improved Airjet Utility High-capacity Storage Unit Device Long-range Sensor Array Storage High-capacity Storage Unit Processor Advanced Signal Interpreter Hackware Relay Coupler [Grunt] Protection Damper Plating Weapon Great Axe Energy Gun High-powered Shock Rifle Energy Cannon Beam Cannon Ballistic Gun Improved KE Penetrator Ballistic Cannon Gauss Cannon Launcher Mini Grenade Launcher Special Weapon Remote Datajack Slashing Weapon Great Axe Piercing Weapon Spear Special Melee Weapon Improved Datajack Build | -11 -10 -10 -10 -9 -8 -8 -8 -8 -7 -7 -7 -7 -6 -6 -6 -6 -6 -6 -6 -6 -5 -5 -4 -4 -4 ------- Run | Scr Mat Min Exi Min Mat Gar Mat Gar Fac Gar Fac Gar Fac Was Fac Ext Cet Arc Hub Gar Fac Gar Fac Gar Fac Slots Evolved 12 | . . . . . 4 . . . 2 . . . 2 . . . . . . . 2 . 2 . . Power . | . . . . . . . . . . . . . . . . . . . . . . . . . . Propulsion . | . . . . . . . . . . . . . . . . . . . . . . . . . . Utility 12 | . . . . . 4 . . . 2 . . . 2 . . . . . . . 2 . 2 . . Weapon . | . . . . . . . . . . . . . . . . . . . . . . . . . . Parts Attached 692 | 6 7 9 2 . 39 4 4 19 99 28 50 17 12 21 26 22 22 8 74 25 68 10 26 26 68 Power 23 | 1 1 . . . 2 . . 2 3 1 1 . . . . . 2 . 2 . 1 . 3 . 4 Engine 9 | 1 1 . . . . . . 1 3 1 1 . . . . . . . . . . . 1 . . Core 4 | . . . . . 2 . . 1 . . . . . . . . . . . . . . 1 . . Reactor 10 | . . . . . . . . . . . . . . . . . 2 . 2 . 1 . 1 . 4 Propulsion 59 | 2 . . . . 6 . 1 . 8 . 6 2 . 4 . . 2 . 2 2 5 1 2 3 13 Treads 34 | 2 . . . . 6 . 1 . 8 . 1 2 . 3 . . 2 . 2 . 1 1 . . 5 Leg . | . . . . . . . . . . . . . . . . . . . . . . . . . . Wheel 24 | . . . . . . . . . . . 4 . . 1 . . . . . 2 4 . 2 3 8 Hover 1 | . . . . . . . . . . . 1 . . . . . . . . . . . . . . Flight . | . . . . . . . . . . . . . . . . . . . . . . . . . . Utility 213 | 1 2 1 2 . 9 . . 5 25 4 21 4 5 5 10 7 7 1 28 10 27 2 8 6 23 Device 107 | . 1 . . . 3 . . . 16 2 11 2 3 2 7 3 3 1 13 5 15 1 5 2 12 Storage 17 | 1 1 1 2 . 1 . . . . . 1 1 . . . . . . . 1 3 . . 1 4 Processor 5 | . . . . . . . . . 1 . . . . . . 1 . . 1 . 1 . 1 . . Hackware 26 | . . . . . . . . 2 . 1 3 1 . 2 1 . . . 2 2 3 . 1 3 5 Protection 58 | . . . . . 5 . . 3 8 1 6 . 2 1 2 3 4 . 12 2 5 1 1 . 2 Artifact . | . . . . . . . . . . . . . . . . . . . . . . . . . . Weapon 397 | 2 4 8 . . 22 4 3 12 63 23 22 11 7 12 16 15 11 7 42 13 35 7 13 17 28 Energy Gun 59 | . 1 . . . 5 1 . . 15 5 2 . . 1 2 6 4 3 4 . 7 . . 2 1 Energy Cannon 54 | . 2 5 . . 2 1 . 1 7 1 2 . 1 4 2 3 3 . 2 3 5 1 1 4 4 Ballistic Gun 55 | 2 . . . . . . . . 1 2 3 . 1 1 . . 2 3 20 4 9 3 4 . . Ballistic Cannon 51 | . 1 . . . 5 . 1 4 14 5 6 4 2 . 4 . . . . . . . . . 5 Launcher 63 | . . 3 . . 6 2 . 5 7 4 . 4 1 . 2 . 2 . 2 3 4 2 3 6 7 Special Weapon 23 | . . . . . . . . . . . 2 . 1 3 1 2 . . 2 . 4 . 2 2 4 Impact Weapon . | . . . . . . . . . . . . . . . . . . . . . . . . . . Slashing Weapon 71 | . . . . . 4 . 2 1 17 2 7 3 1 1 5 2 . . 9 . 5 1 2 3 6 Piercing Weapon 11 | . . . . . . . . . . 1 . . . 2 . 2 . . 3 1 1 . . . 1 Special Melee Weapon 10 | . . . . . . . . 1 2 3 . . . . . . . 1 . 2 . . 1 . . Unidentified Prototypes 22 | . . . . . 2 . . . 3 . 1 . . . 1 . 3 1 6 1 2 . . . 2 Parts Lost 60 | . 1 . . . 3 . . 1 5 1 2 1 . . . . . . 5 . 5 2 7 1 26 Power 11 | . . . . . 1 . . 1 . . . . . . . . . . 1 . 1 . 2 . 5 Propulsion 11 | . . . . . 1 . . . 2 . 1 1 . . . . . . 1 . . . 1 . 4 Utility 22 | . . . . . 1 . . . 2 1 . . . . . . . . 2 . 1 2 1 . 12 Weapon 16 | . 1 . . . . . . . 1 . 1 . . . . . . . 1 . 3 . 3 1 5 Highest Loss Streak 13 | . 1 . . . 2 . . 1 2 1 1 1 . . . . . . 2 . 2 1 6 1 13 Average Slot Usage (%) 91 | . 96 99 100 100 92 90 90 89 93 99 93 100 100 81 80 80 88 93 85 89 94 92 92 98 94 Engine 3 | . 14 14 14 14 . . . 2 3 7 7 7 6 6 6 6 1 . . . . . 1 . . Core 1 | . . . . . 8 9 9 6 3 . . . . . . . . . . . . . . . . Reactor 1 | . . . . . . . . . . . . . . . . . 4 6 6 6 5 5 2 5 4 Treads 9 | . 28 28 28 28 18 18 18 18 14 15 . 11 13 6 6 6 6 6 6 5 3 4 4 . 1 Wheel 2 | . . . . . . . . . . . 14 3 . . . . . . . 1 3 1 1 10 6 Device 7 | . 11 14 3 . 7 9 9 6 6 6 7 5 8 5 5 5 10 13 8 8 5 3 9 9 8 Storage 25 | . 14 14 24 28 25 27 27 27 23 23 23 25 26 26 26 26 26 26 26 26 29 29 26 26 25 Processor 5 | . . . . . . . . . 7 7 7 7 6 6 6 4 . . 2 6 9 11 10 10 7 Hackware 9 | . . . . . . . . 2 7 13 7 13 13 7 6 6 4 . 5 11 20 23 20 25 25 Protection 7 | . . . . . 13 9 9 8 9 8 7 7 10 6 6 8 19 26 15 8 3 1 4 . 1 Energy Gun 2 | . 3 . . . 5 8 9 . 4 1 1 . . . . 4 5 2 2 . 1 . . . . Energy Cannon 2 | . 9 26 28 28 5 7 1 . 1 . . . 2 2 3 . 2 . . 1 . 1 . . . Ballistic Gun 2 | . 8 . . . . . . . . . 3 6 2 . . . 3 9 7 3 4 6 4 . . Ballistic Cannon 1 | . 6 . . . 5 1 . 5 2 4 2 5 3 . . . . . . . . . . . 2 Special Weapon 1 | . . . . . . . . . . . . . 1 5 1 2 . . . . . . . 4 1 Slashing Weapon 2 | . . . . . 1 . 7 9 4 3 5 1 3 . 3 3 . . 1 3 1 . 3 3 2 Naked Turns 1 | . . . . . . . . . . . . . . . . . . . . . . . . . 1 Heaviest Build 210 | 10 26 42 73 73 130 129 131 135 144 133 157 153 175 179 183 199 210 188 198 187 184 170 163 161 177 Greatest Support 80 | 40 40 40 40 40 42 42 42 42 48 48 48 42 42 70 70 70 70 70 80 80 80 80 80 24 75 Greatest Overweight (x) 13 | 3 . 1 1 1 3 3 3 3 6 2 11 5 4 4 2 2 2 2 2 7 7 6 6 6 13 Average Overweight (x) 2 | . . . 1 1 2 2 3 2 2 2 4 3 3 3 2 2 2 2 2 1 3 2 2 6 5 Largest Inventory Capacity 40 | 6 10 12 20 20 28 28 28 28 28 28 28 34 34 34 34 34 34 34 34 40 40 40 40 40 40 Average Capacity 31 | 5 6 11 17 20 26 28 28 28 28 28 28 30 34 34 34 34 34 34 34 34 40 40 40 40 39 Most Carried 40 | 4 9 12 17 17 28 28 28 28 28 28 28 33 32 34 34 34 34 34 34 40 40 40 40 40 40 Average Carried 30 | 2 5 11 14 17 25 28 27 27 26 27 27 28 31 33 33 33 33 33 33 34 39 37 39 35 37 Final Capacity 40 | 6 10 12 20 20 28 28 28 28 28 28 28 34 34 34 34 34 34 34 34 40 40 40 40 40 4 Final Carried 40 | 4 9 12 17 17 28 28 28 28 25 28 27 33 32 34 34 34 34 34 34 40 40 40 38 40 2 Class Distribution -------------------- 54% | Bothacker-Mutant 21% | Hauler-Mutant 6% | Botlord-Assassin 6% | Botlord-Mutant 5% | Mutant Dominant Class ---------------- Mutant | -10/Materials Mutant | -10/Mines Hauler-Mutant | -10/Exiles Hauler-Mutant | -9/Mines Hauler-Mutant | -8/Materials Hauler-Mutant | -8/Garrison Hauler-Mutant | -8/Materials Hauler-Mutant | -8/Garrison Bothacker-Mutant | -7/Factory Bothacker-Mutant | -7/Garrison Bothacker-Mutant | -7/Factory Bothacker-Mutant | -7/Garrison Botlord-Mutant | -6/Factory Bothacker-Mutant | -6/Waste Bothacker-Mutant | -6/Factory Bothacker-Mutant | -6/Extension Bothacker-Mutant | -6/Cetus Scavenger-Mutant | -6/Archives Bothacker-Mutant | -6/Hub_04(d) Bothacker-Mutant | -6/Garrison Bothacker-Mutant | -5/Factory Bothacker-Mutant | -5/Garrison Botlord-Assassin | -4/Factory Botlord-Assassin | -4/Garrison Botlord-Assassin | -4/Factory Resources | -11 -10 -10 -10 -9 -8 -8 -8 -8 -7 -7 -7 -7 -6 -6 -6 -6 -6 -6 -6 -6 -5 -5 -4 -4 -4 ----------- Run | Scr Mat Min Exi Min Mat Gar Mat Gar Fac Gar Fac Gar Fac Was Fac Ext Cet Arc Hub Gar Fac Gar Fac Gar Fac Matter Collected 15135 | 250 175 150 . 20 850 76 184 371 1565 822 571 481 96 615 470 314 289 354 2343 572 1546 369 905 470 1277 Remotely . | . . . . . . . . . . . . . . . . . . . . . . . . . . Salvage Created 21539 | . 411 150 . . 1561 148 249 440 2101 500 336 937 109 1468 954 728 710 459 3490 570 2318 650 497 705 2048 Parts 1022 | . 20 21 . . 90 13 13 25 99 36 19 37 8 16 40 37 37 22 183 23 111 28 32 27 85 Haulers Intercepted 15 | . 1 . . . 6 . . . 3 . . . . . 3 1 . . . . 1 . . . . Recyclers Shooed 15 | . 1 . . . . . . . 3 . . . 2 . . 1 . . . . 4 . 1 . 3 Parts Field Recycled . | . . . . . . . . . . . . . . . . . . . . . . . . . . Retrieved Matter . | . . . . . . . . . . . . . . . . . . . . . . . . . . Parts Self-Destructed . | . . . . . . . . . . . . . . . . . . . . . . . . . . Prevented . | . . . . . . . . . . . . . . . . . . . . . . . . . . Kills | -11 -10 -10 -10 -9 -8 -8 -8 -8 -7 -7 -7 -7 -6 -6 -6 -6 -6 -6 -6 -6 -5 -5 -4 -4 -4 ------- Run | Scr Mat Min Exi Min Mat Gar Mat Gar Fac Gar Fac Gar Fac Was Fac Ext Cet Arc Hub Gar Fac Gar Fac Gar Fac Combat Hostiles Destroyed 367 | . 7 8 . . 30 9 4 17 42 17 5 22 5 5 14 9 15 4 51 12 31 13 9 7 31 Melee 33 | . . . . . 2 . 2 . 9 . . . . 1 1 4 . . 2 1 2 . 1 . 8 Guns 121 | . 6 . . . 4 . 2 . 12 7 2 3 . 1 1 5 . 4 44 1 16 8 4 1 . Cannons 62 | . 1 1 . . 10 . . 2 10 1 3 2 2 3 6 . 2 . . 3 5 1 1 1 8 AOE 128 | . . 7 . . 14 9 . 15 9 9 . 16 3 . 6 . 9 . 4 7 1 1 2 5 11 Classes Destroyed 19 | . 5 2 . . 3 1 1 . 2 1 . 1 . 1 . . . . 1 1 . . . . . Worker 35 | . 1 . . . 4 . 1 . 9 . . . . . 3 1 . . 8 . 3 . 2 . 3 Builder 11 | . . . . . 3 . . . 3 . . . . . 1 . . . 2 . 1 . . . 1 Tunneler 2 | . . 2 . . . . . . . . . . . . . . . . . . . . . . . Hauler 15 | . 1 . . . 6 . . . 3 . . . . . 3 1 . . . . 1 . . . . Recycler 14 | . 1 . . . 2 . . . 2 . 1 . . . 2 . . . . . 2 . . . 4 Operator 5 | . . . . . . . 1 . . . . . . . . . . 4 . . . . . . . Watcher 13 | . 1 . . . 2 . . . 2 . 1 . 1 . . . 2 . 3 . 1 . . . . Swarmer 99 | . . 6 . . 8 4 . 4 10 9 . 7 4 . 10 . 5 . . 9 4 5 2 5 7 Saboteur 1 | . . . . . . . . . . . . . . . . . . . . 1 . . . . . Grunt 133 | . 7 2 . . 13 4 . 13 18 4 1 12 1 . 2 3 5 . 20 2 7 6 1 1 11 Brawler 13 | . . . . . . 1 . . 3 . . 1 . . . . . . 2 . 4 1 . . 1 Duelist 6 | . . . . . . . . . . . . 2 . . . . . . 2 . 1 . . . 1 Protector 5 | . . . . . . . . . 1 . . . . . . . . . 3 . 1 . . . . Sentry 36 | . . . . . 8 . 4 . 5 . 2 . . . . 5 . 4 7 1 . . . . . Specialist 1 | . . . . . . . . . . 1 . . . . . . . . . . . . . . . Hunter 13 | . . . . . 1 . . . . 2 . . . . . 1 . . 1 . 4 1 1 . 2 Programmer 42 | . . . . . . . . . 5 1 2 . . . 2 . 1 . 6 . 10 . 5 1 9 Behemoth 1 | . . . . . . . . . . . . . . . . . . . 1 . . . . . . Compactor 5 | . . . . . . . . . . . . . . 5 . . . . . . . . . . . Cetus Guard 4 | . . . . . . . . . . . . . . . . . 4 . . . . . . . . Lightning 9 | . . . . . . . . . . . . . . . . . . . 9 . . . . . . Best Kill Streak 9 | . 3 4 . . 8 9 2 5 7 4 1 9 4 1 5 2 5 3 7 5 7 6 2 3 5 Combat Bots Only 9 | . 2 3 . . 7 9 1 5 5 4 1 9 4 1 3 2 5 2 6 5 6 6 2 3 4 Max Kills in Single Turn 4 | . 1 3 . . 3 3 1 3 4 4 1 3 2 1 3 1 4 1 2 3 2 2 2 2 4 Gunslinging 1 | . . . . . . . . . 1 . . . . . . . . . 1 . 1 1 . . . Exploded 4 | . . 2 . . 2 3 . 3 2 4 . 3 2 . 2 . 4 . 2 3 1 1 2 2 4 Melee 1 | . . . . . 1 . 1 . 1 . . . . 1 1 1 . . 1 1 1 . 1 . 1 Uniques/NPCs Destroyed . | . . . . . . . . . . . . . . . . . . . . . . . . . . Combat | -11 -10 -10 -10 -9 -8 -8 -8 -8 -7 -7 -7 -7 -6 -6 -6 -6 -6 -6 -6 -6 -5 -5 -4 -4 -4 -------- Run | Scr Mat Min Exi Min Mat Gar Mat Gar Fac Gar Fac Gar Fac Was Fac Ext Cet Arc Hub Gar Fac Gar Fac Gar Fac Damage Taken 21949 | . 381 89 . . 1195 68 205 362 2000 381 528 230 159 . 639 531 241 220 4716 398 2101 330 1326 217 5632 Core 2517 | . 51 33 . . 141 . 31 16 195 29 5 21 18 . 27 30 19 . 275 42 394 36 160 54 940 Absorbed by Shields 2123 | . . . . . . . . . 784 6 48 42 . . 158 64 230 . 135 120 . . . 209 327 Reduced by Siege Mode 418 | . . . . . . . . . . . . . . . 9 . . . 150 . 42 20 72 . 125 Core Remaining (%) 67 | 100 . . . 66 . . . 65 . . . 64 . . . . . . . 51 . 57 . . . Volleys Fired 1192 | . 44 10 . . 92 12 10 34 126 27 31 33 20 72 47 52 22 40 194 26 95 33 47 31 94 Largest 2 | . 2 2 . . 2 2 2 1 2 2 2 2 2 2 2 2 2 2 2 2 2 2 2 1 2 Hottest 155 | . 95 120 . . 121 60 129 60 144 120 135 76 80 128 155 135 120 70 120 70 131 70 120 120 126 Shots Fired 1768 | . 88 15 . . 157 17 20 34 194 41 45 44 26 80 65 62 31 70 363 27 137 47 66 32 107 Gun 949 | . 72 . . . 30 . 10 . 81 29 14 12 6 12 12 42 17 70 353 2 103 30 51 3 . Cannon 585 | . 16 10 . . 111 3 10 22 96 6 25 11 18 55 44 4 8 . 2 18 30 3 7 3 83 Launcher 157 | . . 5 . . 16 14 . 12 17 6 . 21 2 . 5 . 6 . 4 7 4 14 3 9 12 Special 77 | . . . . . . . . . . . 6 . . 13 4 16 . . 4 . . . 5 17 12 Kinetic 940 | . 58 . . . 63 3 7 17 72 15 20 23 12 7 20 . 3 60 317 2 86 30 51 . 74 Thermal 393 | . 30 10 . . 77 . 13 5 85 4 12 . 12 60 26 18 6 . 4 . 14 . 7 6 4 Explosive 106 | . . 5 . . 16 14 . 12 12 6 . 3 2 . 5 . 6 . 4 7 1 . 3 3 7 Electromagnetic 252 | . . . . . 1 . . . 25 16 7 18 . . 10 28 16 10 34 18 36 17 . 6 10 Robot Hit Streak 29 | . 12 2 . . 23 6 11 6 26 16 23 12 6 21 11 14 20 15 29 9 16 10 11 13 14 Robot Miss Streak 7 | . 5 3 . . 3 2 1 2 5 7 1 1 3 3 5 3 1 1 3 2 3 3 5 2 2 Penetration Max 1 | . . . . . . . . . 1 . . . . . . . . 1 1 1 1 1 1 . . Secondary Targets 18 | . 1 . . . . . . . 1 1 . . . . . 1 . . 7 . 3 3 1 . . Max Gunslinging Chain 1 | . 1 . . . . . . . 1 1 . . . . . 1 . . 1 . 1 1 1 . . Shots Hit Robots 1383 | . 56 4 . . 102 3 18 18 168 29 37 24 15 76 52 55 25 48 284 26 123 21 42 35 122 Core Hits 860 | . 24 13 . . 78 19 8 34 120 29 15 40 11 24 33 20 38 20 139 15 54 17 17 19 73 Critical Hits 121 | . . . . . 2 . . . 8 1 2 1 . 2 1 1 . 7 46 5 20 3 14 . 8 Critical Kills 49 | . . . . . . . . . 5 1 . 1 . 1 . 1 . 2 17 1 11 2 6 . 1 Critical Parts Destroyed 69 | . . . . . 2 . . . 3 . 2 . . . 1 . . 5 28 4 8 1 8 . 7 Melee Attacks 476 | . . . . . 25 . 25 8 79 10 44 1 2 8 29 14 . . 36 9 43 1 20 22 100 Impact . | . . . . . . . . . . . . . . . . . . . . . . . . . . Slashing 329 | . . . . . 25 . 25 1 73 2 44 1 2 6 17 . . . 15 2 26 1 20 22 47 Piercing 122 | . . . . . . . . . . . . . . 2 12 14 . . 21 3 17 . . . 53 Sneak Attacks 49 | . . . . . . . . 3 13 8 1 . . 8 4 2 . . . 2 2 . 1 . 5 Combat Hostiles 11 | . . . . . . . . . 2 . . . . 8 . 1 . . . . . . . . . Follow-up Attacks 15 | . . . . . . . . . . . . . . . . . . . 2 1 4 . . . 8 Damage Inflicted 54200 | . 593 391 . . 3362 758 370 1537 6290 1195 912 1800 561 2129 2389 1180 2456 1393 8969 2116 4188 1174 1748 2567 6122 Guns 16659 | . 488 . . . 461 . 174 . 1537 414 301 148 64 363 224 571 337 1393 7097 37 1759 456 782 53 . Cannons 11936 | . 105 69 . . 1541 . 123 204 1446 55 524 164 328 1352 776 38 165 . 168 860 1166 291 296 48 2217 Explosions 16430 | . . 319 . . 1190 758 . 1333 1602 726 . 1488 169 . 879 71 1954 . 1002 1106 433 427 477 561 1935 Melee 9097 | . . . . . 170 . 73 . 1705 . 87 . . 414 510 459 . . 684 113 823 . 193 1905 1961 Ramming 78 | . . 3 . . . . . . . . . . . . . 41 . . 18 . 7 . . . 9 Kinetic 16892 | . 359 . . . 1022 . 89 151 1260 197 389 312 140 183 349 . 60 1182 6612 37 1373 456 782 . 1939 Thermal 8388 | . 234 69 . . 960 . 208 53 1604 74 294 191 252 1532 460 173 401 . 112 . 593 . 648 175 355 Explosive 11093 | . . 319 . . 1190 758 . 1333 832 692 . 321 169 . 879 . 1261 . 696 1106 45 . 125 412 955 Electromagnetic 8652 | . . . . . 20 . . . 889 232 142 976 . . 191 507 734 211 847 860 1347 718 . 75 903 Impact . | . . . . . . . . . . . . . . . . . . . . . . . . . . Slashing 6071 | . . . . . 170 . 73 . 1705 . 87 . . 349 209 . . . 155 56 370 . 193 1905 799 Piercing 3026 | . . . . . . . . . . . . . . 65 301 459 . . 529 57 453 . . . 1162 Highest Corruption 28 | . . . . . . . . . 5 7 2 2 . 15 1 3 6 4 7 7 4 4 8 8 28 Average Corruption 4 | . . . . . . . . . 2 5 1 1 . 8 1 1 4 2 3 4 2 4 4 4 11 Corruption Purged 52 | . . . . . . . . . . 7 . 2 . 20 . . 3 4 . 7 . . . 8 1 Effects 597 | . . . . . . . . . 76 54 9 1 . 145 7 13 13 6 59 14 46 15 23 19 97 Message Errors 126 | . . . . . . . . . 10 14 5 . . 33 2 5 3 3 15 2 9 2 2 3 18 Matter Fused 100 | . . . . . . . . . 19 11 . . . 24 . 2 1 1 10 2 7 2 9 2 10 Heat Flow Errors 70 | . . . . . . . . . 8 7 . 1 . 18 . 1 3 . 4 . 9 . 1 6 12 Energy Discharges 81 | . . . . . . . . . 15 5 2 . . 20 1 2 4 1 3 3 4 4 2 4 11 Parts Rejected 3 | . . . . . . . . . 1 . . . . . . . . . 2 . . . . . . Data Loss (minor) 83 | . . . . . . . . . 14 13 2 . . 20 3 2 1 . 2 4 10 1 3 2 6 Data Loss (major) 13 | . . . . . . . . . . 1 . . . 2 . . 1 . 2 1 . . 1 . 5 Misfires 14 | . . . . . . . . . 2 1 . . . 5 . . . . 2 . . . . 1 3 Alerts 3 | . . . . . . . . . . . . . . 3 . . . . . . . . . . . Misdirections 19 | . . . . . . . . . . . . . . 4 . . . . . . . . . . 15 Targeting Errors 75 | . . . . . . . . . 4 2 . . . 13 1 1 . 1 17 2 7 6 5 1 15 Weapon Failures 10 | . . . . . . . . . 3 . . . . 3 . . . . 2 . . . . . 2 Overload Shots . | . . . . . . . . . . . . . . . . . . . . . . . . . . Overflow Damage 1597 | . . . . . 17 18 . 24 421 4 3 46 . . 119 69 37 . 119 112 172 7 51 86 292 Projectiles 336 | . . . . . 11 . . 23 36 . 3 . . . . . 9 . 74 23 . 3 8 . 146 Explosions 397 | . . . . . 6 18 . 1 . 4 . 46 . . 56 . 28 . 35 89 26 4 43 . 41 Melee 864 | . . . . . . . . . 385 . . . . . 63 69 . . 10 . 146 . . 86 105 Knockbacks 42 | . . . . . 3 . . . 8 . 1 1 1 . 1 . . . 1 . . . . . 26 Impact 1 | . . . . . . . . . . . . . . . . . . . 1 . . . . . . Kinetic 37 | . . . . . 3 . . . 7 . 1 1 1 . 1 . . . . . . . . . 23 Secondary 4 | . . . . . . . . . 1 . . . . . . . . . . . . . . . 3 Self-Inflicted Damage 357 | . . . . . . 5 . . 54 . . . . . . . . . 160 30 . . . 52 56 Shots 13 | . . . . . . 1 . . 3 . . . . . . . . . 3 1 . . . 1 4 Rammed 5 | . . 1 . . . . . . . . . . . . . 1 . . 1 . 1 . . . 1 Targets Rammed 5 | . . 1 . . . . . . . . . . . . . 1 . . 1 . 1 . . . 1 Kicked . | . . . . . . . . . . . . . . . . . . . . . . . . . . Crushed . | . . . . . . . . . . . . . . . . . . . . . . . . . . Highest Temperature 327 | . 29 69 . . 283 1 234 43 318 313 282 235 120 278 324 304 287 . 327 114 254 39 232 208 275 Average Temperature 88 | . 9 21 . . 92 1 98 16 90 112 96 33 44 98 99 91 195 . 98 49 84 12 55 93 82 Received Heat Transfer 4633 | . 210 33 . . 432 27 63 207 502 27 198 92 27 . 55 173 44 27 1035 38 309 81 129 14 910 Effects 23 | . . . . . 4 . . . 4 . 4 . . 1 4 1 1 . . . 1 . . . 3 Energy Bleed 5 | . . . . . 1 . . . 1 . 1 . . 1 . . . . . . 1 . . . . Interference 16 | . . . . . 3 . . . 3 . 3 . . . 3 . 1 . . . . . . . 3 Short Circuit 2 | . . . . . . . . . . . . . . . 1 1 . . . . . . . . . Siege Activations 37 | . . . . . . . . . . . . . . 1 2 . 2 . 18 . 5 3 3 . 3 Total Turns 3643 | . . . . . . . . . . . . . . 2998 20 . 11 . 381 . 84 68 37 . 44 Longest Duration 2998 | . . . . . . . . . . . . . . 2998 17 . 6 . 116 . 41 43 16 . 26 Robots Corrupted 29 | . . . . . . . . . 2 . . 1 . . 1 1 5 . 1 3 9 3 . . 3 Combat Hostiles 21 | . . . . . . . . . 2 . . 1 . . . . 4 . 1 . 7 3 . . 3 Parts Fried 71 | . . . . . . . . . 8 2 2 4 . . 4 1 6 1 8 2 16 4 . . 13 Impact Corruptions 1 | . . . . . . . . . . . . . . . . . . . . . . . . . 1 Robots Melted 1 | . . . . . . . . . . . . . . . . . . . . . . . 1 . . Combat Hostiles 1 | . . . . . . . . . . . . . . . . . . . . . . . 1 . . Parts Melted 21 | . . . . . 3 . . . 4 . 1 . . . 4 1 1 . 1 . 1 . 4 . 1 Heat Transferred 12961 | . 511 148 . . 2072 . 407 111 1696 85 590 300 500 2625 830 380 400 . 161 . 800 . 860 135 350 Parts Sabotaged . | . . . . . . . . . . . . . . . . . . . . . . . . . . Parts Stolen . | . . . . . . . . . . . . . . . . . . . . . . . . . . Parts Stripped . | . . . . . . . . . . . . . . . . . . . . . . . . . . Power Chain Reactions 13 | . . . . . . . . . 2 1 . 3 . . . . 1 . 1 . 1 2 . 1 1 Missiles Intercepted . | . . . . . . . . . . . . . . . . . . . . . . . . . . Latent Energy Used 429 | . . . . . . . . . . . . . . . . 86 164 . . . . . . . 179 LE Corruption 9 | . . . . . . . . . . . . . . . . 2 4 . . . . . . . 3 Alert | -11 -10 -10 -10 -9 -8 -8 -8 -8 -7 -7 -7 -7 -6 -6 -6 -6 -6 -6 -6 -6 -5 -5 -4 -4 -4 ------- Run | Scr Mat Min Exi Min Mat Gar Mat Gar Fac Gar Fac Gar Fac Was Fac Ext Cet Arc Hub Gar Fac Gar Fac Gar Fac Peak Influence 1641 | . 175 200 . . 425 582 386 562 1247 1539 911 693 506 152 380 311 406 368 1268 1418 851 733 492 601 1641 Average Influence 417 | . 64 50 . . 164 500 235 354 605 1346 406 442 399 22 103 134 285 222 494 1120 416 620 237 472 774 Maximum Alert Level 5 | . . 1 . . 2 2 1 2 4 4 3 2 2 . 1 1 2 1 4 4 3 3 2 2 5 Low Security (%) 34 | 100 100 86 . 100 58 . 33 14 7 . 33 15 . 100 87 65 17 59 35 . 20 . 41 . 12 Level 1 23 | . . 13 . . 37 17 66 39 21 . 26 22 69 . 12 34 73 40 18 . 32 9 36 8 20 Level 2 20 | . . . . . 4 82 . 45 37 . 14 62 30 . . . 8 . 13 . 33 75 21 91 18 Level 3 12 | . . . . . . . . . 28 14 26 . . . . . . . 25 54 14 15 . . 18 Level 4 7 | . . . . . . . . . 5 85 . . . . . . . . 6 45 . . . . 26 Level 5 . | . . . . . . . . . . . . . . . . . . . . . . . . . 1 High Security . | . . . . . . . . . . . . . . . . . . . . . . . . . 1 Max Security . | . . . . . . . . . . . . . . . . . . . . . . . . . . Squads Dispatched 100 | . 3 . . . 3 . 1 . 12 . 7 . 2 . 6 4 . . 17 . 13 . 5 . 27 Investigation 14 | . 2 . . . 2 . . . . . 2 . . . . 2 . . 1 . 1 . 1 . 3 Extermination 34 | . . . . . . . . . 6 . 4 . . . 3 . . . 6 . 5 . 3 . 7 Reinforcement 19 | . 1 . . . 1 . 1 . 1 . 1 . 1 . 3 2 . . 3 . 1 . 1 . 3 Assault 18 | . . . . . . . . . 1 . . . 1 . . . . . 1 . 3 . . . 12 Garrison 15 | . . . . . . . . . 4 . . . . . . . . . 6 . 3 . . . 2 Intercept . | . . . . . . . . . . . . . . . . . . . . . . . . . . Construction Impeded 7 | . . . . . . . . . 1 . . . . . 1 1 . . 2 . . . 1 . 1 Haulers Reinforced 2 | . . . . . . . . . . . . . 1 . 1 . . . . . . . . . . Alert ID Control Effect 26 | . . . . . . . . . . . . . . . . . . . . . . . 1 5 20 Stealth | -11 -10 -10 -10 -9 -8 -8 -8 -8 -7 -7 -7 -7 -6 -6 -6 -6 -6 -6 -6 -6 -5 -5 -4 -4 -4 --------- Run | Scr Mat Min Exi Min Mat Gar Mat Gar Fac Gar Fac Gar Fac Was Fac Ext Cet Arc Hub Gar Fac Gar Fac Gar Fac Distress Signals 26 | . . . . . 3 . 1 . 3 . . . . . 2 2 2 . 7 . 2 . 1 . 3 Communications Jammed . | . . . . . . . . . . . . . . . . . . . . . . . . . . Distress Signals . | . . . . . . . . . . . . . . . . . . . . . . . . . . Times Spotted 676 | . 12 7 . . 43 7 7 26 77 18 14 21 8 6 27 23 24 21 96 28 64 15 24 17 91 Peak Tracking Total 15 | . 3 3 . . 6 4 3 5 7 4 3 9 4 3 4 3 5 1 7 7 12 6 4 5 15 Tactical Retreats 68 | . . . . . . 4 . 9 11 . 1 1 . . . . . . 15 3 11 2 4 . 7 Traps | -11 -10 -10 -10 -9 -8 -8 -8 -8 -7 -7 -7 -7 -6 -6 -6 -6 -6 -6 -6 -6 -5 -5 -4 -4 -4 ------- Run | Scr Mat Min Exi Min Mat Gar Mat Gar Fac Gar Fac Gar Fac Was Fac Ext Cet Arc Hub Gar Fac Gar Fac Gar Fac Traps Triggered 54 | . 1 . . . 1 7 . 8 5 4 1 5 1 . 2 1 . . 1 6 2 1 2 2 4 Indirectly 6 | . . . . . . . . . 1 . . 4 . . . . . . . . . . . 1 . Trap Hack Attempts 26 | . . . . . . . . . . 23 . . . . . . . . . 3 . . . . . Triggered . | . . . . . . . . . . . . . . . . . . . . . . . . . . Disarmed . | . . . . . . . . . . . . . . . . . . . . . . . . . . Reprogrammed 1 | . . . . . . . . . . 1 . . . . . . . . . . . . . . . Reused . | . . . . . . . . . . . . . . . . . . . . . . . . . . Traps Extracted . | . . . . . . . . . . . . . . . . . . . . . . . . . . Installed . | . . . . . . . . . . . . . . . . . . . . . . . . . . Triggered 1 | . . . . . . . . . . . . . . . . . . . . . 1 . . . . Machines | -11 -10 -10 -10 -9 -8 -8 -8 -8 -7 -7 -7 -7 -6 -6 -6 -6 -6 -6 -6 -6 -5 -5 -4 -4 -4 ---------- Run | Scr Mat Min Exi Min Mat Gar Mat Gar Fac Gar Fac Gar Fac Was Fac Ext Cet Arc Hub Gar Fac Gar Fac Gar Fac Machines Disabled 118 | . . . . . 2 . . 3 10 3 1 2 . . 3 2 1 5 17 1 4 2 10 2 50 Max in Single Turn 5 | . . . . . 1 . . 1 4 1 . 1 . . 1 1 . 1 3 1 3 1 5 1 5 Garrison Access 5 | . . . . . . . . . 1 . 1 . . . . . . . 1 . . . 1 . 1 Garrison Relay 8 | . . . . . . . . 1 . 2 . 2 . . . . . . . 1 . 1 . 1 . Network Hub 2 | . . . . . . . . . . . . . . . . . . . 2 . . . . . . Machines Sabotaged . | . . . . . . . . . . . . . . . . . . . . . . . . . . Garrisons Compromised . | . . . . . . . . . . . . . . . . . . . . . . . . . . Overloaded Fab Kills . | . . . . . . . . . . . . . . . . . . . . . . . . . . Fab Network Shutdowns 1 | . . . . . . . . . . . . . . . . . . . . . . . 1 . . Hacking | -11 -10 -10 -10 -9 -8 -8 -8 -8 -7 -7 -7 -7 -6 -6 -6 -6 -6 -6 -6 -6 -5 -5 -4 -4 -4 --------- Run | Scr Mat Min Exi Min Mat Gar Mat Gar Fac Gar Fac Gar Fac Was Fac Ext Cet Arc Hub Gar Fac Gar Fac Gar Fac Machines Accessed 111 | . 5 1 1 . 7 . 3 . 15 . 19 . 1 . 9 6 3 . 9 . 11 . 7 . 14 Terminals 69 | . 4 . . . 5 . 2 . 9 . 10 . . . 5 6 3 . 7 . 6 . 3 . 9 Fabricators 12 | . . . . . . . . . 1 . 3 . . . 1 . . . . . 2 . 2 . 3 Repair Stations 6 | . . . . . . . . . 1 . 2 . . . 1 . . . . . 2 . . . . Recycling Units 6 | . 1 . . . 1 . . . 1 . 1 . 1 . . . . . . . . . . . 1 Scanalyzers 2 | . . . . . . . . . . . 1 . . . 1 . . . . . . . . . . Garrison Access 14 | . . . . . 1 . 1 . 3 . 2 . . . 1 . . . 2 . 1 . 2 . 1 Total Hacks 368 | . 12 1 1 . 23 . 5 . 41 . 42 . 1 . 35 22 7 . 24 . 64 . 32 . 58 Successful 190 | . 2 1 1 . 15 . 4 . 16 . 23 . . . 28 9 3 . 14 . 32 . 21 . 21 Failed 175 | . 9 . . . 8 . 1 . 25 . 18 . 1 . 7 13 4 . 10 . 32 . 10 . 37 Catastrophic 50 | . 1 . . . 2 . . . 11 . 5 . 1 . 3 2 2 . 5 . 6 . 1 . 11 Database Lockouts 5 | . 2 . . . . . . . . . 1 . . . . . . . . . . . 2 . . Manual 214 | . 10 . 1 . 21 . 4 . 23 . 17 . . . 12 15 7 . 22 . 38 . 13 . 31 Terminals 242 | . 9 . . . 21 . 4 . 26 . 23 . . . 13 22 7 . 17 . 42 . 19 . 39 Fabricators 54 | . . . . . . . . . 1 . 11 . . . 3 . . . . . 12 . 10 . 17 Repair Stations 18 | . . . . . . . . . 4 . 3 . . . 2 . . . . . 9 . . . . Recycling Units 10 | . 3 . . . 1 . . . 3 . 1 . 1 . . . . . . . . . . . 1 Scanalyzers 17 | . . . . . . . . . . . 2 . . . 15 . . . . . . . . . . Garrison Access 25 | . . . . . 1 . 1 . 7 . 2 . . . 2 . . . 7 . 1 . 3 . 1 Terminal Hacks 53 | . 1 1 1 . 6 . 2 . 1 . 6 . . . 4 5 2 . 2 . 10 . 9 . 3 Record 2 | . . . . . . . 1 . . . . . . . 1 . . . . . . . . . . Part Schematic 4 | . 1 . . . . . . . . . . . . . . . . . . . . . 3 . . Robot Schematic 2 | . . . . . . . . . . . 1 . . . . . . . . . 1 . . . . Robot Analysis 1 | . . . . . . . . . . . 1 . . . . . . . . . . . . . . Open Door 4 | . . 1 . . . . . . . . . . . . 1 1 1 . . . . . . . . Machine Index 2 | . . . . . . . . . . . . . . . . . . . . . . . 1 . 1 Terminal Index 6 | . . . . . 1 . . . 1 . . . . . 1 1 . . . . 1 . . . 1 Fabricator Index 2 | . . . . . . . . . . . 1 . . . . . . . . . 1 . . . . Unreport Threat 12 | . . . . . 1 . . . . . 1 . . . . 1 1 . 2 . 4 . 2 . . Locate Traps 3 | . . . . . . . . . . . . . . . 1 . . . . . 2 . . . . Recall Investigation 3 | . . . . . . . . . . . 1 . . . . 1 . . . . . . 1 . . Recall Assault 1 | . . . . . . . . . . . . . . . . . . . . . . . . . 1 Hauler Manifests 1 | . . . . . . . . . . . . . . . . . . . . . 1 . . . . Zone Layout 9 | . . . . . 4 . 1 . . . 1 . . . . 1 . . . . . . 2 . . EX-Prototype ID Bank 1 | . . . 1 . . . . . . . . . . . . . . . . . . . . . . Fabricator Hacks 28 | . . . . . . . . . . . 4 . . . 2 . . . . . 6 . 6 . 10 Load Schematic 14 | . . . . . . . . . . . 3 . . . 1 . . . . . 3 . 3 . 4 Build 14 | . . . . . . . . . . . 1 . . . 1 . . . . . 3 . 3 . 6 Repair Station Hacks 10 | . . . . . . . . . 1 . 2 . . . 1 . . . . . 6 . . . . Scan Component 6 | . . . . . . . . . 1 . 1 . . . 1 . . . . . 3 . . . . Repair 4 | . . . . . . . . . . . 1 . . . . . . . . . 3 . . . . Recycling Unit Hacks 4 | . . . . . 1 . . . 1 . 1 . . . . . . . . . . . . . 1 Retrieve Components 4 | . . . . . 1 . . . 1 . 1 . . . . . . . . . . . . . 1 Scanalyzer 17 | . . . . . . . . . . . 2 . . . 15 . . . . . . . . . . Insert Component 8 | . . . . . . . . . . . 1 . . . 7 . . . . . . . . . . Analyze 9 | . . . . . . . . . . . 1 . . . 8 . . . . . . . . . . Garrison Access Hacks 14 | . . . . . 1 . 1 . 4 . 2 . . . . . . . 2 . 1 . 3 . . Unlock Access 8 | . . . . . 1 . 1 . 2 . 1 . . . . . . . 1 . 1 . 1 . . Seal Access 4 | . . . . . . . . . 1 . 1 . . . . . . . 1 . . . 1 . . Coupler Status 2 | . . . . . . . . . 1 . . . . . . . . . . . . . 1 . . Unauthorized Hacks 166 | . 4 . . . 17 . 3 . 24 . 16 . . . 16 11 2 . 25 . 20 . 6 . 22 Terminals 54 | . 1 . . . 7 . 1 . 7 . 6 . . . 5 4 1 . 7 . 7 . 3 . 5 Track 15 | . 1 . . . 3 . 1 . 3 . 1 . . . 1 . . . 2 . 2 . 1 . . Assimilate 7 | . . . . . 2 . . . . . 1 . . . 1 . . . 1 . 1 . 1 . . Botnet 25 | . . . . . 1 . . . 3 . 3 . . . 2 3 1 . 3 . 3 . 1 . 5 Disrupt 2 | . . . . . . . . . . . 1 . . . . . . . . . 1 . . . . Operators 5 | . . . . . 1 . . . 1 . . . . . 1 1 . . 1 . . . . . . Fabricators 4 | . . . . . . . . . 1 . . . . . . . . . . . 2 . . . 1 Report 3 | . . . . . . . . . . . . . . . . . . . . . 2 . . . 1 Haulers 1 | . . . . . . . . . 1 . . . . . . . . . . . . . . . . Repair Stations . | . . . . . . . . . . . . . . . . . . . . . . . . . . Recycling Units . | . . . . . . . . . . . . . . . . . . . . . . . . . . Scanalyzers . | . . . . . . . . . . . . . . . . . . . . . . . . . . Garrison Access 6 | . . . . . . . . . 1 . . . . . 1 . . . 3 . . . . . 1 Reprogram 6 | . . . . . . . . . 1 . . . . . 1 . . . 3 . . . . . 1 Data Cores Recovered 1 | . . . . . . . . . . . . . . . 1 . . . . . . . . . . Used . | . . . . . . . . . . . . . . . . . . . . . . . . . . Hacking Detections 94 | . 5 . . . 5 . 1 . 14 . 17 . 1 . 9 5 2 . 9 . 9 . 5 . 12 Full Trace Events 8 | . . . . . . . . . . . 1 . . . . 2 . . 1 . 1 . . . 3 Feedback Events . | . . . . . . . . . . . . . . . . . . . . . . . . . . Feedback Blocked . | . . . . . . . . . . . . . . . . . . . . . . . . . . Robot Schematics Acquired 2 | . . . . . . . . . . . 1 . . . . . . . . . 1 . . . . Robots Built 11 | . . . . . . . . . . . 1 . . . 1 . . . . . 4 . 1 . 4 Matter 2280 | . . . . . . . . . . . 252 . . . 252 . . . . . 888 . 252 . 636 Time 643 | . . . . . . . . . . . 67 . . . 67 . . . . . 302 . 67 . 140 Total Robot Build Rating 60 | . . . . . . . . . . . 4 . . . 4 . . . . . 24 . 4 . 24 Part Schematics Acquired 12 | . 1 . . . . . . . . . 1 . . . 7 . . . . . . . 3 . . Parts Built 5 | . . . . . . . . . . . . . . . . . . . . . . . 3 . 2 Matter 767 | . . . . . . . . . . . . . . . . . . . . . . . 563 . 204 Time 195 | . . . . . . . . . . . . . . . . . . . . . . . 145 . 50 Total Part Build Rating 25 | . . . . . . . . . . . . . . . . . . . . . . . 23 . 2 Parts Repaired 4 | . . . . . . . . . . . 1 . . . . . . . . . 3 . . . . Time 134 | . . . . . . . . . . . 38 . . . . . . . . . 96 . . . . Parts Recycled . | . . . . . . . . . . . . . . . . . . . . . . . . . . Recycled Matter . | . . . . . . . . . . . . . . . . . . . . . . . . . . Retrieved Matter . | . . . . . . . . . . . . . . . . . . . . . . . . . . Retrieved Components 16 | . . . . . . . . . 10 . 3 . . . . . . . . . . . . . 3 Parts Scanalyzed 8 | . . . . . . . . . . . 1 . . . 7 . . . . . . . . . . Part Schematics Acquired 8 | . . . . . . . . . . . 1 . . . 7 . . . . . . . . . . Parts Damaged 2 | . . . . . . . . . . . . . . . 2 . . . . . . . . . . Bothacking | -11 -10 -10 -10 -9 -8 -8 -8 -8 -7 -7 -7 -7 -6 -6 -6 -6 -6 -6 -6 -6 -5 -5 -4 -4 -4 ------------ Run | Scr Mat Min Exi Min Mat Gar Mat Gar Fac Gar Fac Gar Fac Was Fac Ext Cet Arc Hub Gar Fac Gar Fac Gar Fac Used RIF Installer 7 | . . . . . . 1 . 1 . 1 . 1 . . . . . . . 1 . 1 . 1 . Coupler Efficiency 1 | . . . . . . . . . . . . . . . . . . . . . . . . 1 . Robot Detection 1 | . . . . . . . . 1 . . . . . . . . . . . . . . . . . Patrol Navigation 1 | . . . . . . . . . . . . 1 . . . . . . . . . . . . . Alert ID Control 1 | . . . . . . . . . . . . . . . . . . . . 1 . . . . . Structural Interface 1 | . . . . . . . . . . 1 . . . . . . . . . . . . . . . Autoassimilate 1 | . . . . . . . . . . . . . . . . . . . . . . 1 . . . Robots Hacked 43 | . . . . . . . . 3 3 . 2 . . 6 2 . . . 2 2 . 1 3 5 14 Non-combat 6 | . . . . . . . . . 3 . 1 . . . . . . . 1 . . . 1 . . Combat 37 | . . . . . . . . 3 . . 1 . . 6 2 . . . 1 2 . 1 2 5 14 Autoassimilated 12 | . . . . . . . . . . . . . . . . . . . . . . 1 1 2 8 Robot Hacks Applied 39 | . . . . . . . . 3 3 . 4 . . 11 2 . . . 2 2 . . 2 4 6 parse_system 4 | . . . . . . . . . . . . . . 4 . . . . . . . . . . . find_chute 4 | . . . . . . . . . 3 . . . . . . . . . . . . . 1 . . purge_threat 2 | . . . . . . . . . . . 2 . . . . . . . . . . . . . . ignore_targets 7 | . . . . . . . . . . . . . . 7 . . . . . . . . . . . go_dormant 1 | . . . . . . . . . . . . . . . . . . . . . . . . 1 . formatsys_low 1 | . . . . . . . . . . . 1 . . . . . . . . . . . . . . formatsys_high 20 | . . . . . . . . 3 . . 1 . . . 2 . . . 2 2 . . 1 3 6 Relay Couplers Released 39 | . . . . . . . . 4 4 6 . 7 . . . . . . 2 5 . 5 . 3 3 Machine Destruction 35 | . . . . . . . . 4 . 6 . 7 . . . . . . 2 5 . 5 . 3 3 Programmers 4 | . . . . . . . . . 4 . . . . . . . . . . . . . . . . Attached 22 | . . . . . . . . 2 . 1 2 1 . 2 1 . . . 2 2 1 . 1 3 4 Robots Rewired 17 | . . . . . . . . . 1 6 . . . . . 10 . . . . . . . . . Allies Hacked 2 | . . . . . . . . . 1 . 1 . . . . . . . . . . . . . . Hacks Repelled . | . . . . . . . . . . . . . . . . . . . . . . . . . . Allies | -11 -10 -10 -10 -9 -8 -8 -8 -8 -7 -7 -7 -7 -6 -6 -6 -6 -6 -6 -6 -6 -5 -5 -4 -4 -4 -------- Run | Scr Mat Min Exi Min Mat Gar Mat Gar Fac Gar Fac Gar Fac Was Fac Ext Cet Arc Hub Gar Fac Gar Fac Gar Fac Total Allies 81 | . . 5 . . . . . 3 4 6 3 . . . 4 11 . . 9 2 4 1 3 5 21 Largest Group 8 | . . 5 5 3 3 . . 2 4 5 4 1 1 1 4 8 3 1 3 3 3 1 2 4 6 Highest-Rated Group 362 | . . 86 86 40 40 . . 30 73 170 132 10 10 10 139 362 224 150 58 98 156 29 93 205 313 Highest-Rated Ally 156 | . . 31 31 16 16 . . 16 37 38 38 10 10 10 38 156 156 150 37 37 54 29 56 56 58 Total Orders 172 | . . . . . . . . 1 34 4 19 9 5 2 20 18 7 . 1 10 1 . 3 9 29 STAY 37 | . . . . . . . . . 8 1 . 4 1 . 6 5 2 . . 1 . . . 3 6 GOTO 54 | . . . . . . . . 1 10 1 10 2 2 1 3 6 2 . . 4 . . 3 2 7 ROAM 8 | . . . . . . . . . . . 2 . . . . . . . . 2 . . . . 4 FOLLOW 69 | . . . . . . . . . 16 2 7 3 2 1 11 7 3 . . 3 . . . 4 10 EXPLORE 4 | . . . . . . . . . . . . . . . . . . . 1 . 1 . . . 2 Ally Attacks 681 | . . . . . 13 . . 11 49 33 37 . . . 62 128 42 . 43 29 68 . 17 14 135 Total Damage 17916 | . . . . . 127 . . 140 550 910 822 . . . 1875 3325 883 . 505 397 1056 . 390 495 6441 Kills 116 | . . . . . 2 . . . 6 8 7 . . . 14 22 8 . 4 6 5 . 2 5 27 Allies Corrupted 1 | . . . . . . . . . . . . . . 1 . . . . . . . . . . . Allies Melted 2 | . . . . . . . . . . . . . . . . . . . . . . . 1 . 1 Intel | -11 -10 -10 -10 -9 -8 -8 -8 -8 -7 -7 -7 -7 -6 -6 -6 -6 -6 -6 -6 -6 -5 -5 -4 -4 -4 ------- Run | Scr Mat Min Exi Min Mat Gar Mat Gar Fac Gar Fac Gar Fac Was Fac Ext Cet Arc Hub Gar Fac Gar Fac Gar Fac Robot Analysis Total 1 | . . . . . . . . . . . 1 . . . . . . . . . . . . . . Derelict Logs Recovered 5 | . . 2 . 3 . . . . . . . . . . . . . . . . . . . . . Drone Launches 6 | . . . . . . . . . . . . . . . . . . . 2 . 2 . . . 2 Drone Recoveries . | . . . . . . . . . . . . . . . . . . . . . . . . . . Exploration | -11 -10 -10 -10 -9 -8 -8 -8 -8 -7 -7 -7 -7 -6 -6 -6 -6 -6 -6 -6 -6 -5 -5 -4 -4 -4 ------------- Run | Scr Mat Min Exi Min Mat Gar Mat Gar Fac Gar Fac Gar Fac Was Fac Ext Cet Arc Hub Gar Fac Gar Fac Gar Fac Turns Passed 43779 | 83 803 1224 605 247 2743 639 1112 1395 4586 2165 2936 945 462 3747 2706 1550 629 937 3200 954 3179 597 1694 1296 3345 Spaces Moved 17430 | 57 411 674 333 136 1060 281 425 598 1749 794 1768 428 171 151 1174 658 257 324 1095 388 1401 252 728 402 1715 Core 33 | 33 . . . . . . . . . . . . . . . . . . . . . . . . . Treads 13013 | 24 411 674 333 136 1060 281 425 598 1749 794 33 280 171 151 1174 658 257 324 1095 340 908 218 570 . 349 Legs . | . . . . . . . . . . . . . . . . . . . . . . . . . . Wheels 4384 | . . . . . . . . . . . 1735 148 . . . . . . . 48 493 34 158 402 1366 Hover . | . . . . . . . . . . . . . . . . . . . . . . . . . . Flight . | . . . . . . . . . . . . . . . . . . . . . . . . . . Fastest Speed 50 | 50 160 160 180 180 172 192 212 192 205 205 130 135 217 200 200 200 200 200 200 160 150 150 140 150 130 Average Speed 185 | 125 160 174 180 180 209 211 212 208 208 205 139 189 218 222 200 200 200 200 200 180 182 189 181 150 158 Slowest Speed 290 | 200 160 180 180 180 220 212 212 212 290 205 290 217 237 237 200 200 200 200 200 200 200 200 200 150 240 Overloaded Moves . | . . . . . . . . . . . . . . . . . . . . . . . . . . Propulsion Burnouts . | . . . . . . . . . . . . . . . . . . . . . . . . . . Robots Hopped . | . . . . . . . . . . . . . . . . . . . . . . . . . . Cave-ins Triggered . | . . . . . . . . . . . . . . . . . . . . . . . . . . Exploration Rate (%) 55 | 6 67 98 70 33 84 69 33 80 44 76 47 44 2 92 28 64 78 79 94 51 38 50 18 52 40 Regions Visited 25 Branch Regions 7 Pre-discovered Areas 2 | . . 1 . 1 . . . . . . . . . . . . . . . . . . . . . Known Exits Taken 9 | . . . 1 . 1 . 1 . 1 . 1 . . . 1 . . . 1 . 1 . 1 . . Unknown Exits Taken 7 | 1 1 1 . 1 . . . . . . . . . . . 1 1 1 . . . . . . . Scrap Searched 3 | . . 1 . 2 . . . . . . . . . . . . . . . . . . . . . Spaces Dug 485 | . . 7 . . 19 9 22 . 46 . 42 . 14 . 17 . 20 . 170 . 26 . 18 6 69 Terrain Destroyed 1514 | . . 33 . . 96 19 24 41 124 34 43 9 33 . 78 . 94 19 472 44 48 . 34 23 246 Melee 214 | . . . . . 19 . 22 . 38 . 42 . 2 . 17 . . . 10 . 19 . 18 . 27 Projectile 168 | . . . . . 6 . 2 1 3 . 1 1 2 . 2 . . 19 89 . 16 . 7 . 19 AOE 1132 | . . 33 . . 71 19 . 40 83 34 . 8 29 . 59 . 94 . 373 44 13 . 9 23 200 Actions | -11 -10 -10 -10 -9 -8 -8 -8 -8 -7 -7 -7 -7 -6 -6 -6 -6 -6 -6 -6 -6 -5 -5 -4 -4 -4 --------- Run | Scr Mat Min Exi Min Mat Gar Mat Gar Fac Gar Fac Gar Fac Was Fac Ext Cet Arc Hub Gar Fac Gar Fac Gar Fac Total 26298 | 66 477 702 338 139 1375 309 574 702 2329 1276 2111 507 227 3475 1415 808 338 543 1678 608 1817 326 1004 1039 2115 Wait 5949 | . 3 4 . 4 115 . 103 17 235 374 175 17 21 3207 126 56 16 167 233 118 152 20 165 536 85 Move 17407 | 56 410 673 332 135 1060 279 425 596 1749 793 1768 426 171 150 1173 657 256 323 1094 387 1401 250 728 400 1715 Hop . | . . . . . . . . . . . . . . . . . . . . . . . . . . Pick Up 209 | 4 7 3 4 . 25 . 3 5 20 7 17 8 1 4 6 2 8 1 12 13 22 3 6 7 21 Fast Attach 111 | 6 4 2 . . 7 . . 4 14 1 8 . . 3 2 2 5 2 17 5 10 2 4 . 13 Attach 113 | . 1 . . . 4 . . 2 9 1 6 1 2 2 1 1 2 . 11 9 18 5 11 5 22 Detach 69 | . . . . . . . . . 1 1 4 . . 5 . 2 3 1 11 7 11 5 6 1 11 Swap 468 | . 2 7 2 . 28 4 4 13 76 26 36 16 10 16 23 19 15 6 46 11 40 3 11 21 33 Drop 210 | . 6 2 . . 19 . 4 7 20 5 22 1 . 8 8 2 11 3 24 9 25 2 2 4 26 Fire 1192 | . 44 10 . . 92 12 10 34 126 27 31 33 20 72 47 52 22 40 194 26 95 33 47 31 94 Melee 454 | . . . . . 25 . 25 8 79 10 44 1 2 8 29 14 . . 34 8 39 1 20 22 85 Ram 1 | . . . . . . . . . . . . . . . . . . . . . . . . . 1 Kick . | . . . . . . . . . . . . . . . . . . . . . . . . . . Crush 4 | . . 1 . . . . . . . . . . . . . 1 . . 1 . 1 . . . . Escape Stasis 82 | . . . . . . 14 . 16 . 8 . 4 . . . . . . . 12 2 2 4 12 8 Rewire . | . . . . . . . . . . . . . . . . . . . . . . . . . . Trap 26 | . . . . . . . . . . 23 . . . . . . . . . 3 . . . . . Miscellaneous 3 | . . . . . . . . . . . . . . . . . . . 1 . 1 . . . 1 Route ------- -11/Scrapyard -10/Materials (discovered 4 exits: [*Mat x2] / *Min x2) -10/Mines (discovered 3 exits: [*Mat x2] / *Exi) -10/Exiles (discovered 2 exits: *Min x2) -9/Mines -8/Materials (discovered 4 exits: *Fac x3 / Gar) -8/Garrison (discovered 2 exits: *Mat x2) -8/Materials (discovered 2 exits: *Fac / Gar) -8/Garrison (discovered 3 exits: *Fac x3) -7/Factory (discovered 4 exits: *Fac / [*Sto] / Gar / Gar) -7/Garrison (discovered 3 exits: *Fac x3) -7/Factory (discovered 5 exits: *Fac / [*Sto x2] / [*Low] / Gar) -7/Garrison -6/Factory -6/Waste -6/Factory (discovered 2 exits: *Fac / *Ext) -6/Extension (discovered 2 exits: *Fac / *Cet) -6/Cetus (discovered 2 exits: *Fac / [*Arc]) -6/Archives (discovered 3 exits: *Fac / *Hub x2) -6/Hub_04(d) (discovered 5 exits: *Fac x4 / Gar) -6/Garrison -5/Factory (discovered 3 exits: *Fac / [*Upp] / Gar) -5/Garrison -4/Factory -4/Garrison -4/Factory (discovered 3 exits: [*Res x2] / [*Upp]) History --------- Turn | Location | Event 2 | -11/Scrapyard | Met Revision 17 3 | -11/Scrapyard | Discovered new exit (range 16) 84 | -11/Scrapyard | Entered Materials 316 | -10/Materials | Build established: Mutant 359 | -10/Materials | Discovered new exit (range 10) 627 | -10/Materials | Discovered new exit (range 14) 704 | -10/Materials | Discovered new exit (range 13) 797 | -10/Materials | Discovered new exit (range 7) 835 | -10/Materials | Central database locked down 887 | -10/Materials | Entered Mines 1016 | -10/Mines | Discovered new exit (range 7) 1142 | -10/Mines | Discovered new exit (range 6) 1193 | -10/Mines | Met a Derelict who couldn't figure out how to use a Trap Extractor 1361 | -10/Mines | Learned location of Zion (-6) 1539 | -10/Mines | Assisted by bots powering up and referring to "LRC-V3" 2098 | -10/Mines | Deemed a non-threat by the Exiles lab entrance 2098 | -10/Mines | Discovered new exit (range 5) 2111 | -10/Mines | Entered Exiles 2111 | -10/Exiles | Accompanied by 5 allies 2112 | -10/Exiles | Identified exit to Mines 2141 | -10/Exiles | Led the pair of lost Derelicts to a safe place 2160 | -10/Exiles | Met 8R-AWN 2183 | -10/Exiles | Met EX-HEX 2279 | -10/Exiles | Met EX-DEC 2450 | -10/Exiles | Met EX-BIN 2470 | -10/Exiles | Aligned with FarCom system 2472 | -10/Exiles | Given EX-Vault access code 2513 | -10/Exiles | Opened EX-Vault 2522 | -10/Exiles | Found Skeleton Box 2527 | -10/Exiles | Found Gui. Plasma Cannon 2533 | -10/Exiles | Found Latent Energy Streamer 2570 | -10/Exiles | Warned to stay clear of 0b10 Research branches 2669 | -10/Exiles | Build established: Hauler-Mutant 2716 | -10/Exiles | Stole three prototypes: Skeleton Box, Latent Energy Streamer, Gui. Plasma Cannon 2716 | -10/Exiles | Entered Mines 2716 | -9/Mines | Accompanied by 3 allies 2864 | -9/Mines | Learned 4 Materials zone layouts 2878 | -9/Mines | Learned location of Storage (-7) 2945 | -9/Mines | Discovered new exit (range 7) 2950 | -9/Mines | Learned location of 1 exit from Materials 2963 | -9/Mines | Entered Materials 2963 | -8/Materials | Accompanied by 3 allies 2963 | -8/Materials | Evolved 4 slots: Utility x4 2964 | -8/Materials | Identified exit to Factory 4204 | -8/Materials | Discovered exit to Factory (range 5) 4834 | -8/Materials | Destroyed 7 combat bots 5706 | -8/Materials | Identified exit to Garrison 5706 | -8/Materials | Entered Garrison 5794 | -8/Garrison | Triggered checkpoint 5810 | -8/Garrison | Triggered checkpoint 5861 | -8/Garrison | Destroyed 9 combat bots 5918 | -8/Garrison | Triggered checkpoint 5951 | -8/Garrison | Discovered new exit (range 15) 6064 | -8/Garrison | Triggered checkpoint 6294 | -8/Garrison | Discovered new exit (range 10) 6330 | -8/Garrison | Installed Relay Interface Framework 6345 | -8/Garrison | Entered Materials 6840 | -8/Materials | Discovered exit to Factory (range 11) 7457 | -8/Materials | Identified exit to Garrison 7457 | -8/Materials | Entered Garrison 7543 | -8/Garrison | Triggered checkpoint 7719 | -8/Garrison | Discovered exit to Factory (range 15) 7966 | -8/Garrison | Triggered checkpoint 8039 | -8/Garrison | Discovered exit to Factory (range 14) 8209 | -8/Garrison | Triggered checkpoint 8307 | -8/Garrison | Discovered exit to Factory (range 14) 8348 | -8/Garrison | Expanded RIF knowledge: Robot Detection 8443 | -8/Garrison | Triggered checkpoint 8500 | -8/Garrison | Garrison Relay disabled 8596 | -8/Garrison | Triggered checkpoint 8852 | -8/Garrison | Entered Factory 8852 | -7/Factory | Accompanied by 1 ally 8852 | -7/Factory | Evolved 2 slots: Utility x2 8854 | -7/Factory | FarCom data flow suspended 9964 | -7/Factory | Garrison activated, responded to threat 10461 | -7/Factory | Discovered new exit (range 11) 10767 | -7/Factory | Build established: Bothacker-Mutant 11252 | -7/Factory | First assault squad dispatched 12116 | -7/Factory | Garrison activated, responded to threat 12287 | -7/Factory | Identified exit to Garrison 13386 | -7/Factory | Discovered new exit (range 8) 13438 | -7/Factory | Identified exit to Garrison 13438 | -7/Factory | Entered Garrison 13450 | -7/Garrison | Triggered checkpoint 13687 | -7/Garrison | Triggered checkpoint 13747 | -7/Garrison | Garrison Relay disabled 13840 | -7/Garrison | Triggered checkpoint 14206 | -7/Garrison | Discovered new exit (range 10) 14395 | -7/Garrison | Triggered checkpoint 14508 | -7/Garrison | Triggered checkpoint 14577 | -7/Garrison | Discovered new exit (range 14) 14602 | -7/Garrison | Identified exit to Factory 14614 | -7/Garrison | Expanded RIF knowledge: Structural Interface 14802 | -7/Garrison | Triggered checkpoint 14852 | -7/Garrison | Garrison Relay disabled 14936 | -7/Garrison | Discovered exit to Factory (range 14) 15603 | -7/Garrison | Entered Factory 15603 | -7/Factory | Accompanied by 4 allies 15731 | -7/Factory | Discovered new exit (range 16) 16703 | -7/Factory | Repaired Arm. Treads 17063 | -7/Factory | Discovered new exit (range 15) 17390 | -7/Factory | Discovered new exit (range 11) 17912 | -7/Factory | Fabricated I-36 Angel (x1) 18222 | -7/Factory | Build established: Hauler-Mutant 18259 | -7/Factory | Central database locked down 18525 | -7/Factory | Discovered new exit (range 16) 18539 | -7/Factory | Identified exit to Garrison 18539 | -7/Factory | Entered Garrison 18539 | -7/Garrison | Accompanied by 1 ally 18546 | -7/Garrison | Expanded RIF knowledge: Patrol Navigation 18632 | -7/Garrison | Triggered checkpoint 18681 | -7/Garrison | Garrison Relay disabled 18884 | -7/Garrison | Triggered checkpoint 18889 | -7/Garrison | Triggered checkpoint 18921 | -7/Garrison | Destroyed 9 combat bots 18990 | -7/Garrison | Build established: Bothacker-Mutant 19020 | -7/Garrison | Triggered checkpoint 19312 | -7/Garrison | Discovered new exit (range 10) 19366 | -7/Garrison | Triggered checkpoint 19410 | -7/Garrison | Garrison Relay disabled 19478 | -7/Garrison | Identified exit to Factory 19484 | -7/Garrison | Entered Factory 19484 | -6/Factory | Accompanied by 1 ally 19484 | -6/Factory | Evolved 2 slots: Utility x2 19704 | -6/Factory | Build established: Botlord-Mutant 19834 | -6/Factory | First assault squad dispatched 19946 | -6/Factory | Sucked down chute 19946 | -6/Factory | Entered Waste 19961 | -6/Waste | EMP discharged 19966 | -6/Waste | Spotted C-40 Crusher 19968 | -6/Waste | Spotted C-40 Crusher 19985 | -6/Waste | 1 allies followed down the chute 20019 | -6/Waste | Spotted C-40 Crusher 20025 | -6/Waste | Destroyed C-40 Crusher 20061 | -6/Waste | EMP discharged 20061 | -6/Waste | System corruption reached 10% 20072 | -6/Waste | Spotted C-40 Crusher 20120 | -6/Waste | Destroyed C-40 Crusher 20145 | -6/Waste | Found Damper Plating 20161 | -6/Waste | EMP discharged 20172 | -6/Waste | Spotted C-40 Crusher 20261 | -6/Waste | EMP discharged 20302 | -6/Waste | Discovered new exit (range 12) 20356 | -6/Waste | Destroyed C-40 Crusher 20361 | -6/Waste | EMP discharged 20378 | -6/Waste | Destroyed C-40 Crusher 20394 | -6/Waste | Found Damper Plating 20427 | -6/Waste | Identified exit to Factory 20461 | -6/Waste | EMP discharged 20561 | -6/Waste | EMP discharged 20623 | -6/Waste | Build established: Bothacker-Mutant 20661 | -6/Waste | EMP discharged 20761 | -6/Waste | EMP discharged 20861 | -6/Waste | EMP discharged 20961 | -6/Waste | EMP discharged 21061 | -6/Waste | EMP discharged 21161 | -6/Waste | EMP discharged 21261 | -6/Waste | EMP discharged 21361 | -6/Waste | EMP discharged 21461 | -6/Waste | EMP discharged 21561 | -6/Waste | EMP discharged 21661 | -6/Waste | EMP discharged 21761 | -6/Waste | EMP discharged 21861 | -6/Waste | EMP discharged 21961 | -6/Waste | EMP discharged 22061 | -6/Waste | EMP discharged 22161 | -6/Waste | EMP discharged 22261 | -6/Waste | EMP discharged 22361 | -6/Waste | EMP discharged 22461 | -6/Waste | EMP discharged 22561 | -6/Waste | EMP discharged 22661 | -6/Waste | EMP discharged 22761 | -6/Waste | EMP discharged 22861 | -6/Waste | EMP discharged 22961 | -6/Waste | EMP discharged 23061 | -6/Waste | EMP discharged 23161 | -6/Waste | EMP discharged 23261 | -6/Waste | EMP discharged 23361 | -6/Waste | EMP discharged 23461 | -6/Waste | EMP discharged 23474 | -6/Waste | Destroyed C-40 Crusher 23561 | -6/Waste | EMP discharged 23661 | -6/Waste | EMP discharged 23693 | -6/Waste | Entered Factory 24498 | -6/Factory | Discovered new exit (range 10) 24725 | -6/Factory | Fabricated I-36 Angel? 25332 | -6/Factory | Discovered new exit (range 7) 26012 | -6/Factory | Found Prototype Device 26012 | -6/Factory | Identified Exp. Terrain Scanner 26397 | -6/Factory | Identified exit to Extension 26399 | -6/Factory | Entered Extension 26399 | -6/Extension | Accompanied by 1 ally 26873 | -6/Extension | Rescued A7 27518 | -6/Extension | Spotted B-75 Beast 27526 | -6/Extension | Allies destroyed B-75 Beast 27543 | -6/Extension | Spotted B-75 Beast 27574 | -6/Extension | Allies destroyed B-75 Beast 27856 | -6/Extension | Discovered new exit (range 16) 27858 | -6/Extension | Discovered new exit (range 15) 27949 | -6/Extension | Entered Cetus 27949 | -6/Cetus | Accompanied by 3 allies 27954 | -6/Cetus | Acquired a Cetus Manufacturing Module code from A7 27982 | -6/Cetus | Spotted Cetus Guard 27982 | -6/Cetus | Spotted Cetus Guard 27985 | -6/Cetus | Spotted Cetus Guard 27987 | -6/Cetus | Spotted Cetus Guard 27989 | -6/Cetus | Destroyed Cetus Guard 27997 | -6/Cetus | Allies destroyed Cetus Guard 27998 | -6/Cetus | Allies destroyed Cetus Guard 27999 | -6/Cetus | Destroyed Cetus Guard 28317 | -6/Cetus | Failed to start Cetus Manufacturing Module 28330 | -6/Cetus | Escorted A7 to Cetus Mainframe 28351 | -6/Cetus | Discovered new exit (range 16) 28395 | -6/Cetus | Spotted Cetus Guard 28395 | -6/Cetus | Spotted Cetus Guard 28399 | -6/Cetus | Spotted Cetus Guard 28401 | -6/Cetus | Allies destroyed Cetus Guard 28401 | -6/Cetus | Spotted Cetus Guard 28405 | -6/Cetus | Destroyed Cetus Guard 28407 | -6/Cetus | Allies destroyed Cetus Guard 28411 | -6/Cetus | Destroyed Cetus Guard 28437 | -6/Cetus | Discovered new exit (range 16) 28449 | -6/Cetus | Met Revision 17 28578 | -6/Cetus | Entered Archives 28578 | -6/Archives | Accompanied by 1 ally 28583 | -6/Archives | Received a hacking code to weaken MAIN.C 28767 | -6/Archives | Discovered new exit (range 16) 28787 | -6/Archives | Discovered new exit (range 16) 28874 | -6/Archives | Build established: Scavenger-Mutant 29097 | -6/Archives | Discovered new exit (range 15) 29347 | -6/Archives | Build established: Bothacker-Mutant 29515 | -6/Archives | Entered Hub_04(d) 29648 | -6/Hub_04(d) | Discovered new exit (range 4) 30049 | -6/Hub_04(d) | Spotted B-75 Beast 30215 | -6/Hub_04(d) | Garrison activated, responded to threat 30422 | -6/Hub_04(d) | Discovered new exit (range 13) 30812 | -6/Hub_04(d) | Garrison activated, responded to threat 30936 | -6/Hub_04(d) | Identified exit to Garrison 30982 | -6/Hub_04(d) | Discovered new exit (range 10) 31320 | -6/Hub_04(d) | Network Hub disabled 31350 | -6/Hub_04(d) | Discovered new exit (range 16) 31388 | -6/Hub_04(d) | Spotted Lightning 31388 | -6/Hub_04(d) | Destroyed Lightning 31393 | -6/Hub_04(d) | Spotted Lightning 31418 | -6/Hub_04(d) | Spotted Lightning 31426 | -6/Hub_04(d) | Destroyed B-75 Beast 31468 | -6/Hub_04(d) | Destroyed Lightning 31504 | -6/Hub_04(d) | Destroyed Lightning 31529 | -6/Hub_04(d) | Found Prototype Processor 31535 | -6/Hub_04(d) | Found Prototype Energy Cannon 31566 | -6/Hub_04(d) | Found Prototype Device 31566 | -6/Hub_04(d) | Identified Exp. Phase Shifter 31573 | -6/Hub_04(d) | Found Prototype Device 31573 | -6/Hub_04(d) | Identified EM Dispersion Field 31726 | -6/Hub_04(d) | Spotted Lightning 31728 | -6/Hub_04(d) | Network Hub disabled 31728 | -6/Hub_04(d) | Spotted Lightning 31736 | -6/Hub_04(d) | Spotted Lightning 31842 | -6/Hub_04(d) | Destroyed Lightning 31845 | -6/Hub_04(d) | Destroyed Lightning 31869 | -6/Hub_04(d) | Destroyed Lightning 31882 | -6/Hub_04(d) | Found Prototype Energy Cannon 31896 | -6/Hub_04(d) | Identified EMDS (x2) 31902 | -6/Hub_04(d) | Found EMDS 32063 | -6/Hub_04(d) | Spotted Lightning 32074 | -6/Hub_04(d) | Spotted Lightning 32077 | -6/Hub_04(d) | Spotted Lightning 32139 | -6/Hub_04(d) | Destroyed Lightning 32157 | -6/Hub_04(d) | Destroyed Lightning 32163 | -6/Hub_04(d) | Destroyed Lightning 32315 | -6/Hub_04(d) | First assault squad dispatched 32715 | -6/Hub_04(d) | Entered Garrison 32715 | -6/Garrison | Accompanied by 1 ally 33000 | -6/Garrison | Triggered checkpoint 33005 | -6/Garrison | Build established: Hauler-Mutant 33019 | -6/Garrison | Garrison Relay disabled 33224 | -6/Garrison | Triggered checkpoint 33267 | -6/Garrison | Triggered checkpoint 33316 | -6/Garrison | Build established: Bothacker-Mutant 33360 | -6/Garrison | Triggered checkpoint 33417 | -6/Garrison | Discovered new exit (range 10) 33446 | -6/Garrison | Expanded RIF knowledge: Alert ID Control 33669 | -6/Garrison | Entered Factory 33669 | -5/Factory | Accompanied by 1 ally 33669 | -5/Factory | Evolved 2 slots: Utility x2 33759 | -5/Factory | Repaired Centrium Heavy Treads 33795 | -5/Factory | Repaired Broken Proton Missile Launcher? 33969 | -5/Factory | First assault squad dispatched 34316 | -5/Factory | Discovered new exit (range 89) 35410 | -5/Factory | Garrison activated, responded to threat 35484 | -5/Factory | Repaired Reactive Plating 35596 | -5/Factory | Discovered new exit (range 20) 35789 | -5/Factory | Build established: Bothacker-Assassin 36113 | -5/Factory | Fabricated P-70 Sage? 36124 | -5/Factory | Build established: Bothacker-Mutant 36442 | -5/Factory | Fabricated P-70 Sage (x2) 36481 | -5/Factory | Build established: Bothacker-Skirmisher 36848 | -5/Factory | Identified exit to Garrison 36848 | -5/Factory | Entered Garrison 36902 | -5/Garrison | Triggered checkpoint 36943 | -5/Garrison | Triggered checkpoint 37108 | -5/Garrison | Discovered new exit (range 12) 37117 | -5/Garrison | Build established: Bothacker-Mutant 37130 | -5/Garrison | Identified exit to Factory 37144 | -5/Garrison | Expanded RIF knowledge: Autoassimilate 37211 | -5/Garrison | Triggered checkpoint 37350 | -5/Garrison | Garrison Relay disabled 37445 | -5/Garrison | Entered Factory 37445 | -4/Factory | Accompanied by 1 ally 37445 | -4/Factory | Evolved 2 slots: Utility x2 37756 | -4/Factory | Build established: Botlord-Assassin 38147 | -4/Factory | P-70 Sage assimilated allied Veteran 7a 38281 | -4/Factory | Central database locked down 38334 | -4/Factory | Spotted B-86 Titan 38718 | -4/Factory | Fabricated Lgt. Quantum Reactor? 38883 | -4/Factory | Lost 6 parts (1p1n1u3w) 39020 | -4/Factory | Fabricated Exp. Signal Interpreter (x1) 39047 | -4/Factory | Local fabrication network quarantined 39094 | -4/Factory | Fabricated I-36 Angel (x1) 39104 | -4/Factory | Build established: Botlord-Mutant 39139 | -4/Factory | Identified exit to Garrison 39139 | -4/Factory | Entered Garrison 39139 | -4/Garrison | Accompanied by 2 allies 39190 | -4/Garrison | Triggered checkpoint 39207 | -4/Garrison | Triggered checkpoint 39230 | -4/Garrison | Triggered checkpoint 39246 | -4/Garrison | Triggered checkpoint 39324 | -4/Garrison | Discovered new exit (range 21) 39357 | -4/Garrison | Identified exit to Factory 39368 | -4/Garrison | Expanded RIF knowledge: Coupler Efficiency 39740 | -4/Garrison | Build established: Botlord-Assassin 40020 | -4/Garrison | Triggered checkpoint 40073 | -4/Garrison | Garrison Relay disabled 40399 | -4/Garrison | Build established: Botlord-Mutant 40435 | -4/Garrison | Entered Factory 40435 | -4/Factory | Accompanied by 4 allies 40540 | -4/Factory | Fabricated Hcp. Storage Unit (x1) 40570 | -4/Factory | Fabricated Hcp. Storage Unit (x1) 40663 | -4/Factory | Fabricated P-70 Sage? 40689 | -4/Factory | Spotted B-86 Titan 40700 | -4/Factory | Allies destroyed B-86 Titan 41184 | -4/Factory | Build established: Botlord-Assassin 41185 | -4/Factory | Discovered new exit (range 21) 41567 | -4/Factory | Discovered new exit (range 13) 41935 | -4/Factory | First assault squad dispatched 42234 | -4/Factory | Garrison activated, responded to threat 42378 | -4/Factory | Build established: Botlord-Mutant 42545 | -4/Factory | Discovered new exit (range 4) 42592 | -4/Factory | Fabricated P-70 Sage (x2) 42877 | -4/Factory | Build established: Bothacker-Mutant 42954 | -4/Factory | System corruption reached 10% 43337 | -4/Factory | Core integrity fell below 50% 43458 | -4/Factory | Lost 3 parts (1p2u) 43707 | -4/Factory | Garrison activated, responded to threat 43717 | -4/Factory | High security lockdown imminent 43736 | -4/Factory | Core integrity fell below 20% 43778 | -4/Factory | Released all parts (7) 43780 | -4/Factory | Destroyed by P-70 Sage with High-powered Shock Rifle Last Messages --------------- 43767_ Imp. Heavy Treads destroyed. 43767_ Penetrated by Slug. 43770_ Slug penetrates Y-64 Sentinel. 43771_ Imp. System Backup Module destroyed. 43772_ Relay Coupler [Hunter] destroyed. 43772_ Penetrated by Slug. 43772_ Critical hit. 43772_ Arm. Wheel destroyed. 43773_ Enh. Optical Array destroyed. 43776_ Garrison Access under remote control. 43776_ Slug penetrates Matter Pump. 43778_ Released Arm. Wheel. 43778_ Released Lrg. Storage Unit. 43778_ Released Hcp. Storage Unit. 43778_ Released Lrg. Storage Unit. 43778_ Released Hcp. Storage Unit. 43778_ Released Relay Coupler [Grunt]. 43779_ E-15 Imp destroyed. 43779_ Critical hit. 43779_ EMDS destroyed. Map ----- +----------------------------------------------------+ | ?????????????????????????????????????? | | ?????????????????????????????????????? | | ?????????????????????????????????????? | | ?????????????????????????????????????? | | ?????????????????????????????????????? | | ?????????????????????????????????????? | | ?????????????????????????????????????? | | ?????????????????????????????????????? | | ?????????????????????????????????????? | | ?????????????????????????????????????? | | ?????????????????????????????????????? | | ?????????????????????????????????????? | | ??#??????????????????????????????????? | | ??# ?????????????????????????????????? | | ??# ????????????????????????????????? | | ???#"#???????????????????????????????? | | ????# #??????????????????????????????? | | ?????# #?????????????????????????????? | | ??????# #????????????????????????????? | | ######## #??????###############??????? | | ## ####### #??????? | | ###"#"#"## %!=! #??????? | | + # # !!!%%%"]/! +??????? | | """ #"##" ### !!!!%%%!!! #??????? | | """"" "##?#[ ""# !!]!%p%!]]=#??????? | | """"" ##??# *% g ]]]*|@!!!!#??????? | | #???# Y g/[g""!""/!#??????? | | """ #???# u g %g""G""!*#??????? | | """"" #???# %;######/########??????? | | """"" #???# ""[??? g ?????????????? | | #???# " """?????????????? | | ##??# # """?????????????? | | #######"#?#" # """?????????????? | | "##?## # ?????????????? | | """ ##???# #########?????????????? | | """ #???? ?????????????????????? | | """ #???#!% ?????????????????????? | | #???# ?????????????????????? | | = #???# ?????????????????????? | | #???# ????????????????????? | | #######???# #????????????????????? | | ??????????# #????????????????????? | | ??????????# #????????????????????? | | ??????????# #????????????????????? | | ??????????# ?????????????????????? | | ??????????? ?????????????????????? | | ????????????? ???????????????????????? | | ?????????????????????????????????????? | | ?????????????????????????????????????? | | ?????????????????????????????????????? | +----------------------------------------------------+ Best States ------------- Heat Dissipation 69 Energy Generation 31 Energy Capacity 350 Matter Stores 460 Matter Capacity 600 Sight Range 22 Robot Scan Range 20 Terrain Scan Range 30 Terrain Scan Density 10 Power Amplification 30 Additional Mass Support 12 Armor Coverage 2850 Resistance: KI 30 Resistance: TH 20 Resistance: EM 90 Utility Shielding 66 Phase Shifting 20 Evasion (%) 60 Recoil Reduction 2 Energy Filtering 30 Offensive Hacking 38 Item Schematics ----------------- Hcp. Storage Unit | -10/Materials | Hacked Hacking Suite | -7/Factory | Scanalyzed Imp. Heavy Siege Treads | -6/Factory | Scanalyzed Arm. Wheel | -6/Factory | Scanalyzed Tesla Rifle | -6/Factory | Scanalyzed Hrd. Heavy Armor Plating | -6/Factory | Scanalyzed Med. Reactive Plating | -6/Factory | Scanalyzed Proton Missile Launcher | -6/Factory | Scanalyzed Imp. Utility Shielding | -6/Factory | Scanalyzed Imp. Heavy Treads | -4/Factory | Hacked Fusion Reactor | -4/Factory | Hacked Exp. Signal Interpreter | -4/Factory | Hacked Robot Schematics ------------------ I-36 Angel | -7/Factory | Hacked P-70 Sage | -5/Factory | Hacked Fabricated ------------ I-36 Angel | x1 | -7/Factory I-36 Angel | x1 | -6/Factory P-70 Sage | x2 | -5/Factory P-70 Sage | x2 | -5/Factory Lgt. Quantum Reactor | x2 | -4/Factory | Preloaded Exp. Signal Interpreter | x1 | -4/Factory I-36 Angel | x1 | -4/Factory Hcp. Storage Unit | x1 | -4/Factory Hcp. Storage Unit | x1 | -4/Factory P-70 Sage | x2 | -4/Factory P-70 Sage | x2 | -4/Factory Alien Tech Used ----------------- None Achievements -------------- None Challenges ------------ None Game ------ Seed HypervelocityStormTendrils Manual? 0 Play Time 05:46:24 Cumulative 884.0 hours Start 2019.12.30 @ 16:19:08 End 2019.12.31 @ 02:08:10 Sessions 3 Manual Loads 0 Difficulty Rogue Special Mode None Game No. 344 Rogue 344 Adventurer 0 Explorer 0 Win Type - Total 21 Types 11/1/7/0/0/0/2 Lore% 95 Gallery% 96 Achievement% 81 Wizard Run 0 Options --------- ASCII 0 Keyboard 0 Movement Vi Keybinds 0 Fullscreen 0 Font 12/Crisp Map View 76x50 Tactical HUD 1 Map Filters NONE Filters NONE Steam 1 RUN: f6d55579-9016-4f5f-aa37-61766f293178